[Event "Early-Titled-Tuesday-Blitz-January-16-2024"]
[Site "Chess.com"]
[Date "2024.01.16"]
[Round "9"]
[White "MITerryble"]
[Black "Elsa167"]
[Result "1-0"]
[WhiteElo "3026"]
[BlackElo "2846"]
[TimeControl "180+1"]
[EndTime "9:48:08 PST"]
[Termination "MITerryble won by resignation"]

1. d4 {[%clk 0:03:00.9]} 1... Nf6 {[%clk 0:02:58.1]} 2. Bg5 {[%clk 0:03:00.7]}
2... c5 {[%clk 0:02:56.2]} 3. dxc5 {[%clk 0:03:00.5]} 3... e6 {[%clk 0:02:54.7]}
4. e3 {[%clk 0:02:57.1]} 4... Bxc5 {[%clk 0:02:53.8]} 5. Nd2 {[%clk 0:02:55.6]}
5... d5 {[%clk 0:02:41.6]} 6. Ngf3 {[%clk 0:02:54.7]} 6... Nc6 {[%clk
0:02:41.7]} 7. a3 {[%clk 0:02:53.8]} 7... O-O {[%clk 0:02:41.6]} 8. Bd3 {[%clk
0:02:52.6]} 8... h6 {[%clk 0:02:39.7]} 9. Bh4 {[%clk 0:02:52.3]} 9... Be7 {[%clk
0:02:40.1]} 10. O-O {[%clk 0:02:50.5]} 10... b6 {[%clk 0:02:39.3]} 11. Qe2
{[%clk 0:02:49]} 11... Bb7 {[%clk 0:02:39.4]} 12. Rfd1 {[%clk 0:02:47]} 12...
Nd7 {[%clk 0:02:30.7]} 13. Bg3 {[%clk 0:02:22.3]} 13... Nc5 {[%clk 0:02:30.1]}
14. e4 {[%clk 0:02:22.2]} 14... Nxd3 {[%clk 0:02:29.1]} 15. Qxd3 {[%clk
0:02:17.5]} 15... dxe4 {[%clk 0:02:25]} 16. Qxe4 {[%clk 0:02:04.7]} 16... Qc8
{[%clk 0:02:24.8]} 17. Qg4 {[%clk 0:01:46.6]} 17... e5 {[%clk 0:02:09]} 18. Qh5
{[%clk 0:01:46.3]} 18... f6 {[%clk 0:02:05.8]} 19. Nh4 {[%clk 0:01:34.8]} 19...
Nd4 {[%clk 0:01:53]} 20. c3 {[%clk 0:01:34.1]} 20... Qc6 {[%clk 0:01:52.8]} 21.
cxd4 {[%clk 0:01:31.2]} 21... f5 {[%clk 0:01:46.1]} 22. d5 {[%clk 0:01:19.9]}
22... Qxd5 {[%clk 0:01:46.1]} 23. Ndf3 {[%clk 0:01:17.7]} 23... Qe6 {[%clk
0:01:41.1]} 24. Ng6 {[%clk 0:01:12.4]} 24... Bxf3 {[%clk 0:01:34.5]} 25. gxf3
{[%clk 0:01:00]} 25... Rf6 {[%clk 0:01:14.4]} 26. Nxe7+ {[%clk 0:00:48.4]} 26...
Qxe7 {[%clk 0:01:15.3]} 27. f4 {[%clk 0:00:48.4]} 27... exf4 {[%clk 0:00:48.2]}
28. Bxf4 {[%clk 0:00:47.9]} 28... Qe4 {[%clk 0:00:47.4]} 29. Bg3 {[%clk
0:00:48.3]} 29... f4 {[%clk 0:00:44.6]} 30. f3 {[%clk 0:00:48.6]} 30... Qc2
{[%clk 0:00:34.3]} 31. Qd5+ {[%clk 0:00:40.5]} 31... Kh7 {[%clk 0:00:20.5]} 32.
Qxa8 {[%clk 0:00:39.6]} 32... Qc5+ {[%clk 0:00:18.5]} 33. Kg2 {[%clk 0:00:22.6]}
33... Rg6 {[%clk 0:00:09.3]} 34. Qe4 {[%clk 0:00:20.4]} 34... fxg3 {[%clk
0:00:09.8]} 35. hxg3 {[%clk 0:00:19.3]} 35... Qg5 {[%clk 0:00:10.1]} 36. g4
{[%clk 0:00:18.7]} 36... Kh8 {[%clk 0:00:09.7]} 37. Rac1 {[%clk 0:00:13.1]}
37... h5 {[%clk 0:00:06.9]} 38. Rc8+ {[%clk 0:00:11.5]} 38... Kh7 {[%clk
0:00:07.6]} 39. Rc6 {[%clk 0:00:11.3]} 1-0

[Event "Early-Titled-Tuesday-Blitz-January-16-2024"]
[Site "Chess.com"]
[Date "2024.01.16"]
[Round "9"]
[White "abelmat"]
[Black "GlavkonVVS"]
[Result "1-0"]
[WhiteElo "2066"]
[BlackElo "2443"]
[TimeControl "180+1"]
[EndTime "9:48:08 PST"]
[Termination "abelmat won on time"]

1. d4 {[%clk 0:02:54]} 1... Nf6 {[%clk 0:02:58.8]} 2. c4 {[%clk 0:02:53.4]} 2...
c5 {[%clk 0:02:57.1]} 3. Nf3 {[%clk 0:02:53]} 3... cxd4 {[%clk 0:02:56.5]} 4.
Nxd4 {[%clk 0:02:53.9]} 4... Nc6 {[%clk 0:02:55.1]} 5. g3 {[%clk 0:02:54.3]}
5... g6 {[%clk 0:02:50.7]} 6. Bg2 {[%clk 0:02:54.2]} 6... Bg7 {[%clk 0:02:47.8]}
7. O-O {[%clk 0:02:54.1]} 7... O-O {[%clk 0:02:45.2]} 8. Nc3 {[%clk 0:02:53.9]}
8... Ng4 {[%clk 0:02:42]} 9. Nb3 {[%clk 0:02:48.4]} 9... d6 {[%clk 0:02:38.8]}
10. Nd5 {[%clk 0:02:40.3]} 10... Nge5 {[%clk 0:02:29.5]} 11. Qc2 {[%clk
0:02:35.3]} 11... e6 {[%clk 0:02:15.6]} 12. Nf4 {[%clk 0:02:30.3]} 12... Nb4
{[%clk 0:02:03.3]} 13. Qd2 {[%clk 0:02:24.8]} 13... a5 {[%clk 0:01:56.6]} 14. c5
{[%clk 0:02:19.7]} 14... Nc4 {[%clk 0:01:35.5]} 15. Qd1 {[%clk 0:02:09.8]} 15...
a4 {[%clk 0:01:33.8]} 16. a3 {[%clk 0:01:54]} 16... axb3 {[%clk 0:01:22]} 17.
Qxb3 {[%clk 0:01:53.6]} 17... dxc5 {[%clk 0:01:05]} 18. Qxc4 {[%clk 0:01:50.1]}
18... Na6 {[%clk 0:00:52.7]} 19. Be3 {[%clk 0:01:44.8]} 19... Bxb2 {[%clk
0:00:50.3]} 20. Rfd1 {[%clk 0:01:40.7]} 20... Qa5 {[%clk 0:00:43.8]} 21. Bd2
{[%clk 0:01:27.1]} 21... Qc7 {[%clk 0:00:36.2]} 22. Ra2 {[%clk 0:01:16.4]} 22...
Bg7 {[%clk 0:00:33.8]} 23. h4 {[%clk 0:01:09.7]} 23... Bd7 {[%clk 0:00:27.1]}
24. h5 {[%clk 0:01:06.8]} 24... b5 {[%clk 0:00:23.7]} 25. Qe4 {[%clk 0:01:01.4]}
25... Rab8 {[%clk 0:00:16.1]} 26. Be3 {[%clk 0:00:49.8]} 26... Rfc8 {[%clk
0:00:14.2]} 27. hxg6 {[%clk 0:00:32.7]} 27... hxg6 {[%clk 0:00:11.6]} 28. Rad2
{[%clk 0:00:18.5]} 28... Bc6 {[%clk 0:00:10.2]} 29. Qc2 {[%clk 0:00:18.3]} 29...
Bxg2 {[%clk 0:00:07.2]} 30. Nxg2 {[%clk 0:00:19.2]} 1-0

[Event "Early-Titled-Tuesday-Blitz-January-16-2024"]
[Site "Chess.com"]
[Date "2024.01.16"]
[Round "9"]
[White "rasmussvane"]
[Black "MagnusCarlsen"]
[Result "0-1"]
[WhiteElo "3001"]
[BlackElo "3302"]
[TimeControl "180+1"]
[EndTime "9:48:10 PST"]
[Termination "MagnusCarlsen won on time"]

1. Nf3 {[%clk 0:03:00.9]} 1... b5 {[%clk 0:02:58.4]} 2. e4 {[%clk 0:02:59.4]}
2... Bb7 {[%clk 0:02:58.6]} 3. Bxb5 {[%clk 0:02:59.2]} 3... Bxe4 {[%clk
0:02:59.2]} 4. O-O {[%clk 0:02:59]} 4... e6 {[%clk 0:02:59.6]} 5. d4 {[%clk
0:02:58.7]} 5... c6 {[%clk 0:02:59.2]} 6. Be2 {[%clk 0:02:55.6]} 6... Bxf3
{[%clk 0:02:59.4]} 7. Bxf3 {[%clk 0:02:56]} 7... g6 {[%clk 0:02:59.9]} 8. c3
{[%clk 0:02:08.9]} 8... Bg7 {[%clk 0:02:58.9]} 9. Bf4 {[%clk 0:02:04.8]} 9...
Ne7 {[%clk 0:02:55.8]} 10. Bd6 {[%clk 0:02:00.3]} 10... O-O {[%clk 0:02:54.9]}
11. Nd2 {[%clk 0:01:58]} 11... Re8 {[%clk 0:02:55.1]} 12. Re1 {[%clk 0:01:49.2]}
12... Nf5 {[%clk 0:02:54.7]} 13. Ba3 {[%clk 0:01:49.4]} 13... d5 {[%clk
0:02:54.6]} 14. Be2 {[%clk 0:01:46.6]} 14... Nd7 {[%clk 0:02:53.9]} 15. Bd3
{[%clk 0:01:46.8]} 15... Ne7 {[%clk 0:02:45]} 16. Nb3 {[%clk 0:01:45.2]} 16...
a5 {[%clk 0:02:44.2]} 17. Nc5 {[%clk 0:01:45.1]} 17... Nxc5 {[%clk 0:02:44.2]}
18. Bxc5 {[%clk 0:01:46]} 18... Bf8 {[%clk 0:02:42]} 19. Qd2 {[%clk 0:01:43]}
19... Nc8 {[%clk 0:02:42]} 20. Bxf8 {[%clk 0:01:31.7]} 20... Rxf8 {[%clk
0:02:41.5]} 21. g3 {[%clk 0:01:24.4]} 21... Nd6 {[%clk 0:02:40.2]} 22. h4 {[%clk
0:01:24.2]} 22... a4 {[%clk 0:02:33.5]} 23. Kg2 {[%clk 0:01:23.7]} 23... Qf6
{[%clk 0:02:30.2]} 24. h5 {[%clk 0:01:20.8]} 24... Rfb8 {[%clk 0:02:27.5]} 25.
Re2 {[%clk 0:01:20]} 25... Kf8 {[%clk 0:02:24.6]} 26. Rh1 {[%clk 0:01:19.4]}
26... Ke7 {[%clk 0:02:24.2]} 27. Qe3 {[%clk 0:01:07]} 27... Kd7 {[%clk
0:02:23.4]} 28. Rh4 {[%clk 0:01:03.1]} 28... g5 {[%clk 0:02:23.1]} 29. Rh1
{[%clk 0:01:03.4]} 29... h6 {[%clk 0:02:22.9]} 30. Rf1 {[%clk 0:01:03.1]} 30...
Rg8 {[%clk 0:02:18]} 31. f3 {[%clk 0:00:53.9]} 31... Rab8 {[%clk 0:02:13.6]} 32.
Rc2 {[%clk 0:00:47.4]} 32... Rb7 {[%clk 0:02:02.5]} 33. Rff2 {[%clk 0:00:41.4]}
33... Rgb8 {[%clk 0:01:57]} 34. Qc1 {[%clk 0:00:39.9]} 34... Qg7 {[%clk
0:01:55.1]} 35. g4 {[%clk 0:00:37]} 35... Qf6 {[%clk 0:01:51.5]} 36. Kg3 {[%clk
0:00:37.4]} 36... Re8 {[%clk 0:01:43.9]} 37. Rce2 {[%clk 0:00:36]} 37... e5
{[%clk 0:01:39]} 38. dxe5 {[%clk 0:00:34.7]} 38... Rxe5 {[%clk 0:01:39.9]} 39.
Kg2 {[%clk 0:00:33.3]} 39... Rxe2 {[%clk 0:01:39.1]} 40. Rxe2 {[%clk 0:00:33.3]}
40... Ra7 {[%clk 0:01:27.7]} 41. c4 {[%clk 0:00:31.5]} 41... dxc4 {[%clk
0:01:09.9]} 42. Bxc4 {[%clk 0:00:30.7]} 42... Ra8 {[%clk 0:01:06.7]} 43. Bd3
{[%clk 0:00:20.6]} 43... Re8 {[%clk 0:01:02.3]} 44. Rxe8 {[%clk 0:00:20.7]}
44... Nxe8 {[%clk 0:01:03.2]} 45. Bf5+ {[%clk 0:00:17.9]} 45... Ke7 {[%clk
0:01:03.7]} 46. Qc5+ {[%clk 0:00:15.7]} 46... Nd6 {[%clk 0:01:02.9]} 47. Qa7+
{[%clk 0:00:15.1]} 47... Kf8 {[%clk 0:01:02.8]} 48. Qb8+ {[%clk 0:00:11]} 48...
Kg7 {[%clk 0:01:02.9]} 49. Bd3 {[%clk 0:00:06.6]} 49... Qd4 {[%clk 0:01:00.5]}
50. Be2 {[%clk 0:00:07.2]} 50... Nb5 {[%clk 0:00:56.3]} 51. b3 {[%clk
0:00:04.8]} 51... Qb2 {[%clk 0:00:52.8]} 52. Kf1 {[%clk 0:00:05.2]} 52... a3
{[%clk 0:00:51.2]} 53. Bxb5 {[%clk 0:00:05.4]} 53... cxb5 {[%clk 0:00:48.6]} 54.
Qxb5 {[%clk 0:00:03.1]} 54... Qb1+ {[%clk 0:00:48.7]} 55. Kg2 {[%clk 0:00:03.1]}
55... Qxa2+ {[%clk 0:00:49.6]} 0-1

[Event "Early-Titled-Tuesday-Blitz-January-16-2024"]
[Site "Chess.com"]
[Date "2024.01.16"]
[Round "9"]
[White "RobertoJBM"]
[Black "BogdanDeac"]
[Result "0-1"]
[WhiteElo "2795"]
[BlackElo "3015"]
[TimeControl "180+1"]
[EndTime "9:48:11 PST"]
[Termination "BogdanDeac won on time"]

1. d4 {[%clk 0:02:55.2]} 1... Nf6 {[%clk 0:03:00.1]} 2. Nf3 {[%clk 0:02:55.1]}
2... d5 {[%clk 0:03:00]} 3. e3 {[%clk 0:02:55.6]} 3... a6 {[%clk 0:02:59.8]} 4.
c3 {[%clk 0:02:48.4]} 4... Bf5 {[%clk 0:02:57.1]} 5. Bd3 {[%clk 0:02:47.8]} 5...
e6 {[%clk 0:02:56.5]} 6. Bxf5 {[%clk 0:02:47.5]} 6... exf5 {[%clk 0:02:56.5]} 7.
O-O {[%clk 0:02:48.4]} 7... Nbd7 {[%clk 0:02:56.4]} 8. c4 {[%clk 0:02:46.8]}
8... dxc4 {[%clk 0:02:54.9]} 9. Qc2 {[%clk 0:02:46.8]} 9... g6 {[%clk
0:02:54.9]} 10. Qxc4 {[%clk 0:02:46.7]} 10... Bd6 {[%clk 0:02:55.4]} 11. b3
{[%clk 0:02:45.7]} 11... Qe7 {[%clk 0:02:53.9]} 12. Bb2 {[%clk 0:02:45.5]} 12...
O-O {[%clk 0:02:51.5]} 13. Qc1 {[%clk 0:02:44.3]} 13... Rac8 {[%clk 0:02:48.1]}
14. Nbd2 {[%clk 0:02:43.3]} 14... Ne4 {[%clk 0:02:35.5]} 15. Qd1 {[%clk
0:02:41]} 15... Ndf6 {[%clk 0:02:31.6]} 16. Rc1 {[%clk 0:02:40.2]} 16... Nd5
{[%clk 0:02:28.9]} 17. Re1 {[%clk 0:02:37.1]} 17... h5 {[%clk 0:02:26.5]} 18.
Re2 {[%clk 0:02:34.8]} 18... h4 {[%clk 0:02:23.1]} 19. Ne5 {[%clk 0:02:26.2]}
19... h3 {[%clk 0:02:13.9]} 20. f3 {[%clk 0:02:10.9]} 20... Nxd2 {[%clk
0:01:53.9]} 21. Qxd2 {[%clk 0:02:11.8]} 21... Rfd8 {[%clk 0:01:52.9]} 22. e4
{[%clk 0:01:54.9]} 22... fxe4 {[%clk 0:01:52]} 23. fxe4 {[%clk 0:01:55.8]} 23...
Nf6 {[%clk 0:01:52.5]} 24. Qh6 {[%clk 0:01:46.6]} 24... Bxe5 {[%clk 0:00:44.8]}
25. dxe5 {[%clk 0:01:45.7]} 25... Ng4 {[%clk 0:00:44.9]} 26. Qf4 {[%clk
0:01:28.4]} 26... Qh4 {[%clk 0:00:44.9]} 27. Rf1 {[%clk 0:01:22.1]} 27... Rd7
{[%clk 0:00:28.7]} 28. Bc3 {[%clk 0:00:20.2]} 28... Qh5 {[%clk 0:00:21]} 29.
gxh3 {[%clk 0:00:10.4]} 29... Qxh3 {[%clk 0:00:20.6]} 30. Rf3 {[%clk 0:00:08.6]}
30... Qh5 {[%clk 0:00:19]} 31. Rg3 {[%clk 0:00:06.9]} 31... Rd1+ {[%clk
0:00:18.1]} 32. Be1 {[%clk 0:00:06.1]} 32... Nxe5 {[%clk 0:00:10.4]} 33. Qf1
{[%clk 0:00:01.1]} 33... Rcd8 {[%clk 0:00:06.7]} 34. Kg2 {[%clk 0:00:01.7]}
34... Qh6 {[%clk 0:00:05.4]} 0-1

[Event "Early-Titled-Tuesday-Blitz-January-16-2024"]
[Site "Chess.com"]
[Date "2024.01.16"]
[Round "9"]
[White "GMWSO"]
[Black "maciek_92"]
[Result "1-0"]
[WhiteElo "3079"]
[BlackElo "2850"]
[TimeControl "180+1"]
[EndTime "9:48:15 PST"]
[Termination "GMWSO won on time"]

1. d4 {[%clk 0:03:00.9]} 1... Nf6 {[%clk 0:02:59.9]} 2. c4 {[%clk 0:02:59.3]}
2... e6 {[%clk 0:02:59.6]} 3. Nc3 {[%clk 0:02:59.6]} 3... Bb4 {[%clk 0:02:59.5]}
4. Bd2 {[%clk 0:02:58.9]} 4... O-O {[%clk 0:02:58.2]} 5. e3 {[%clk 0:02:53.1]}
5... d5 {[%clk 0:02:57.7]} 6. Nf3 {[%clk 0:02:51.2]} 6... b6 {[%clk 0:02:56.2]}
7. cxd5 {[%clk 0:02:50.6]} 7... exd5 {[%clk 0:02:56.4]} 8. Rc1 {[%clk
0:02:50.3]} 8... a6 {[%clk 0:02:53.9]} 9. Bd3 {[%clk 0:02:48.6]} 9... Bb7 {[%clk
0:02:53.5]} 10. O-O {[%clk 0:02:40.1]} 10... Nbd7 {[%clk 0:02:52.1]} 11. a3
{[%clk 0:02:29.3]} 11... Bd6 {[%clk 0:02:51.8]} 12. b4 {[%clk 0:02:29.5]} 12...
Re8 {[%clk 0:02:50.8]} 13. Qb3 {[%clk 0:02:27]} 13... Nf8 {[%clk 0:02:45.3]} 14.
a4 {[%clk 0:02:24.8]} 14... Ne4 {[%clk 0:02:43.5]} 15. Rfd1 {[%clk 0:01:54.2]}
15... Ng6 {[%clk 0:02:42.2]} 16. Be1 {[%clk 0:01:45.4]} 16... Nh4 {[%clk
0:02:24.9]} 17. Nxh4 {[%clk 0:01:34.9]} 17... Qxh4 {[%clk 0:02:25.8]} 18. f4
{[%clk 0:01:35]} 18... Qh5 {[%clk 0:01:18.1]} 19. Nxe4 {[%clk 0:01:26.6]} 19...
dxe4 {[%clk 0:01:17]} 20. Bc4 {[%clk 0:01:19.4]} 20... g5 {[%clk 0:01:15.4]} 21.
Bd5 {[%clk 0:00:48.8]} 21... Bxd5 {[%clk 0:01:09]} 22. Qxd5 {[%clk 0:00:49.7]}
22... h6 {[%clk 0:01:09.8]} 23. Bg3 {[%clk 0:00:44.7]} 23... Qg4 {[%clk
0:01:01.7]} 24. Rf1 {[%clk 0:00:41.7]} 24... Qe6 {[%clk 0:00:19.2]} 25. Qxe6
{[%clk 0:00:36.4]} 25... Rxe6 {[%clk 0:00:20.1]} 26. fxg5 {[%clk 0:00:31.6]}
26... Bxb4 {[%clk 0:00:11.1]} 27. Rxc7 {[%clk 0:00:28.5]} 27... hxg5 {[%clk
0:00:11]} 28. Rfxf7 {[%clk 0:00:28.1]} 28... Bf8 {[%clk 0:00:10.4]} 29. Be5
{[%clk 0:00:25.3]} 29... b5 {[%clk 0:00:08.1]} 30. Rf5 {[%clk 0:00:15.3]} 30...
Rg6 {[%clk 0:00:06.7]} 31. axb5 {[%clk 0:00:11.3]} 31... axb5 {[%clk 0:00:07.6]}
32. Rb7 {[%clk 0:00:11.8]} 32... b4 {[%clk 0:00:07.8]} 33. Kf2 {[%clk
0:00:10.8]} 33... g4 {[%clk 0:00:05.4]} 34. Kg3 {[%clk 0:00:10.7]} 34... Bh6
{[%clk 0:00:06]} 35. Bf4 {[%clk 0:00:10.2]} 35... Bf8 {[%clk 0:00:06.3]} 36. Be5
{[%clk 0:00:09.2]} 36... Ra3 {[%clk 0:00:05.9]} 37. Rb8 {[%clk 0:00:08.6]} 1-0

[Event "Early-Titled-Tuesday-Blitz-January-16-2024"]
[Site "Chess.com"]
[Date "2024.01.16"]
[Round "9"]
[White "HajiyevKanan"]
[Black "Trojan-Knight"]
[Result "0-1"]
[WhiteElo "2573"]
[BlackElo "2698"]
[TimeControl "180+1"]
[EndTime "9:48:15 PST"]
[Termination "Trojan-Knight won by checkmate"]

1. d4 {[%clk 0:03:00.9]} 1... Nf6 {[%clk 0:02:55.9]} 2. Nf3 {[%clk 0:03:00.5]}
2... g6 {[%clk 0:02:55.3]} 3. g3 {[%clk 0:03:00.3]} 3... Bg7 {[%clk 0:02:54.1]}
4. Bg2 {[%clk 0:03:00.9]} 4... d5 {[%clk 0:02:54.5]} 5. O-O {[%clk 0:03:01.8]}
5... O-O {[%clk 0:02:54.4]} 6. b3 {[%clk 0:03:02.4]} 6... c5 {[%clk 0:02:52.5]}
7. Bb2 {[%clk 0:03:02.8]} 7... cxd4 {[%clk 0:02:52.3]} 8. Bxd4 {[%clk
0:03:01.4]} 8... Nc6 {[%clk 0:02:51.7]} 9. Bb2 {[%clk 0:03:02]} 9... Re8 {[%clk
0:02:47.3]} 10. Ne5 {[%clk 0:02:54]} 10... Qd6 {[%clk 0:02:44.4]} 11. Nxc6
{[%clk 0:02:52.1]} 11... bxc6 {[%clk 0:02:45.3]} 12. c4 {[%clk 0:02:52.3]} 12...
Rb8 {[%clk 0:02:41.2]} 13. Qc2 {[%clk 0:02:48.3]} 13... Bf5 {[%clk 0:02:38.7]}
14. Qc1 {[%clk 0:02:38.5]} 14... e5 {[%clk 0:02:38.5]} 15. Rd1 {[%clk
0:02:33.3]} 15... d4 {[%clk 0:02:33.9]} 16. c5 {[%clk 0:02:29.3]} 16... Qe6
{[%clk 0:02:24.6]} 17. Nd2 {[%clk 0:02:26.5]} 17... Rbd8 {[%clk 0:02:21.5]} 18.
Nc4 {[%clk 0:02:26.5]} 18... Bf8 {[%clk 0:02:19.2]} 19. b4 {[%clk 0:02:19.2]}
19... Nd5 {[%clk 0:02:14.4]} 20. a3 {[%clk 0:02:10.5]} 20... a5 {[%clk
0:02:06.3]} 21. e4 {[%clk 0:02:01.2]} 21... dxe3 {[%clk 0:02:03.8]} 22. Nxe3
{[%clk 0:02:01.8]} 22... Bh6 {[%clk 0:01:53.1]} 23. Bc3 {[%clk 0:01:04.6]} 23...
Nxe3 {[%clk 0:01:31.3]} 24. fxe3 {[%clk 0:01:00.5]} 24... Bg4 {[%clk 0:00:59.3]}
25. Rxd8 {[%clk 0:00:55.2]} 25... Rxd8 {[%clk 0:01:00.2]} 26. Qb2 {[%clk
0:00:48]} 26... Bxe3+ {[%clk 0:00:55.6]} 27. Kh1 {[%clk 0:00:48.6]} 27... Bd4
{[%clk 0:00:20.4]} 28. bxa5 {[%clk 0:00:40.2]} 28... Qc4 {[%clk 0:00:16]} 29.
Bxd4 {[%clk 0:00:34.6]} 29... exd4 {[%clk 0:00:16.9]} 30. Bxc6 {[%clk
0:00:25.7]} 30... d3 {[%clk 0:00:13.3]} 31. Bb5 {[%clk 0:00:20.5]} 31... Qe4+
{[%clk 0:00:11.3]} 32. Kg1 {[%clk 0:00:19.7]} 32... d2 {[%clk 0:00:09.6]} 33.
Ba4 {[%clk 0:00:03.6]} 33... Qe3+ {[%clk 0:00:09.5]} 34. Kg2 {[%clk 0:00:03.1]}
34... Qf3+ {[%clk 0:00:07.5]} 35. Kg1 {[%clk 0:00:03.8]} 35... Bh3 {[%clk
0:00:05.4]} 36. Qxd2 {[%clk 0:00:02.5]} 36... Rxd2 {[%clk 0:00:04.4]} 37. Rf1
{[%clk 0:00:02.4]} 37... Qg2# {[%clk 0:00:04.8]} 0-1

[Event "Early-Titled-Tuesday-Blitz-January-16-2024"]
[Site "Chess.com"]
[Date "2024.01.16"]
[Round "9"]
[White "scarabee43"]
[Black "Yeritsyaan"]
[Result "1-0"]
[WhiteElo "2818"]
[BlackElo "2650"]
[TimeControl "180+1"]
[EndTime "9:48:17 PST"]
[Termination "scarabee43 won by resignation"]

1. d4 {[%clk 0:03:00.9]} 1... Nf6 {[%clk 0:02:55.3]} 2. c4 {[%clk 0:03:01.5]}
2... e6 {[%clk 0:02:52.1]} 3. Nf3 {[%clk 0:03:01.8]} 3... Bb4+ {[%clk
0:02:50.6]} 4. Bd2 {[%clk 0:02:58.9]} 4... c5 {[%clk 0:02:50.2]} 5. g3 {[%clk
0:02:54.1]} 5... O-O {[%clk 0:02:45.9]} 6. Bg2 {[%clk 0:02:54.5]} 6... Bxd2+
{[%clk 0:02:29.3]} 7. Qxd2 {[%clk 0:02:54]} 7... cxd4 {[%clk 0:02:28.7]} 8. Nxd4
{[%clk 0:02:53.2]} 8... d5 {[%clk 0:02:27.7]} 9. cxd5 {[%clk 0:02:51.1]} 9...
exd5 {[%clk 0:02:26.3]} 10. Nc3 {[%clk 0:02:49]} 10... Nc6 {[%clk 0:02:25.8]}
11. O-O {[%clk 0:02:48.9]} 11... Re8 {[%clk 0:02:25.1]} 12. Rfd1 {[%clk
0:02:47]} 12... Bg4 {[%clk 0:02:24]} 13. h3 {[%clk 0:02:43]} 13... Bh5 {[%clk
0:02:21.4]} 14. Nf3 {[%clk 0:02:28.5]} 14... Ne4 {[%clk 0:02:15]} 15. Qxd5
{[%clk 0:02:19.7]} 15... Nxc3 {[%clk 0:02:14.3]} 16. bxc3 {[%clk 0:02:19.1]}
16... Bg6 {[%clk 0:01:51.5]} 17. e3 {[%clk 0:02:16.5]} 17... Qf6 {[%clk
0:01:50.1]} 18. Nd4 {[%clk 0:02:11.7]} 18... Rad8 {[%clk 0:01:46]} 19. Qb5
{[%clk 0:02:10.6]} 19... Nxd4 {[%clk 0:01:14.9]} 20. cxd4 {[%clk 0:02:09.6]}
20... b6 {[%clk 0:01:14.7]} 21. Qc6 {[%clk 0:02:04]} 21... Qe7 {[%clk
0:01:10.3]} 22. Rac1 {[%clk 0:01:52.6]} 22... h5 {[%clk 0:01:09.5]} 23. h4
{[%clk 0:01:52.4]} 23... Bf5 {[%clk 0:01:09.3]} 24. Rc3 {[%clk 0:01:35.1]} 24...
Bg4 {[%clk 0:01:04.3]} 25. Rdc1 {[%clk 0:01:34.9]} 25... Rd7 {[%clk 0:01:00.6]}
26. Qb5 {[%clk 0:01:29.6]} 26... Red8 {[%clk 0:00:59.3]} 27. Qg5 {[%clk
0:01:25.8]} 27... f6 {[%clk 0:00:47.4]} 28. Qg6 {[%clk 0:01:24.1]} 28... Qf7
{[%clk 0:00:41.7]} 29. Qxf7+ {[%clk 0:01:16.5]} 29... Kxf7 {[%clk 0:00:42.6]}
30. Kf1 {[%clk 0:01:12.8]} 30... Be6 {[%clk 0:00:39.9]} 31. a3 {[%clk
0:01:12.5]} 31... g5 {[%clk 0:00:36.6]} 32. hxg5 {[%clk 0:01:11.1]} 32... fxg5
{[%clk 0:00:37.5]} 33. Rc7 {[%clk 0:01:09.5]} 33... h4 {[%clk 0:00:35.3]} 34.
gxh4 {[%clk 0:01:08.9]} 34... gxh4 {[%clk 0:00:36.2]} 35. Rxd7+ {[%clk
0:01:04.7]} 35... Rxd7 {[%clk 0:00:31.6]} 36. Ke2 {[%clk 0:01:04.6]} 36... Kf6
{[%clk 0:00:27.6]} 37. Rh1 {[%clk 0:01:01.6]} 37... Rg7 {[%clk 0:00:23.6]} 38.
Bh3 {[%clk 0:00:59]} 38... Bc4+ {[%clk 0:00:22.4]} 39. Kd2 {[%clk 0:00:58.1]}
39... Bd5 {[%clk 0:00:22.7]} 40. Rc1 {[%clk 0:00:55.5]} 40... Rf7 {[%clk
0:00:22]} 41. Ke2 {[%clk 0:00:53.8]} 41... Kg5 {[%clk 0:00:20.2]} 42. Rg1+
{[%clk 0:00:51]} 42... Kf6 {[%clk 0:00:17.2]} 43. Rg4 {[%clk 0:00:51]} 43... Rh7
{[%clk 0:00:17.4]} 44. Rf4+ {[%clk 0:00:51]} 44... Ke7 {[%clk 0:00:17.4]} 45. e4
{[%clk 0:00:51.3]} 45... Bc4+ {[%clk 0:00:17.7]} 46. Ke3 {[%clk 0:00:51]} 46...
a5 {[%clk 0:00:18.4]} 47. d5 {[%clk 0:00:50.7]} 47... b5 {[%clk 0:00:17.6]} 48.
Kd4 {[%clk 0:00:51]} 48... Ba2 {[%clk 0:00:16.6]} 49. e5 {[%clk 0:00:51.4]}
49... b4 {[%clk 0:00:16.4]} 50. d6+ {[%clk 0:00:52]} 50... Ke8 {[%clk
0:00:15.6]} 51. axb4 {[%clk 0:00:52.3]} 51... axb4 {[%clk 0:00:16.5]} 52. Rg4
{[%clk 0:00:50.5]} 52... b3 {[%clk 0:00:13.7]} 53. Rg8+ {[%clk 0:00:50.4]} 53...
Kf7 {[%clk 0:00:14.2]} 54. Rb8 {[%clk 0:00:50.8]} 54... Kg6 {[%clk 0:00:09.3]}
55. e6 {[%clk 0:00:50.8]} 55... Kf6 {[%clk 0:00:07.7]} 56. d7 {[%clk 0:00:50.6]}
56... b2 {[%clk 0:00:06.8]} 57. d8=Q+ {[%clk 0:00:49.9]} 1-0